bitfinex/quotes_ETHUSD_20220202
["timestamp","ask_amount","ask_price","bid_price","bid_amount"]
[1643829679854,0.01152372,2705.2,2704.2,3.0]
[1643829680051,0.01152372,2705.2,2704.3,5.25]
[1643829680254,0.01152372,2705.2,2704.9,6.697]
[1643829680452,0.13819997,2705.8,2704.9,0.536]
[1643829680453,0.2003818,2705.8,2704.9,0.536]
[1643829680666,0.81082642,2705.0,2704.6,0.536]
[1643829680854,0.71082642,2705.0,2704.4,0.536]
[1643829681050,0.71082642,2705.0,2704.1,0.09999999]
[1643829681253,0.71082642,2705.0,2704.0,0.536]
[1643829681712,0.71082642,2705.0,2703.2,0.536]
[1643829681713,0.9,2704.3,2703.2,0.536]
[1643829682006,0.48565,2704.3,2704.1,0.00234668]
[1643829682204,5.35,2704.2,2704.1,0.00234668]
[1643829682402,6.73707916,2704.2,2704.1,0.00234668]
[1643829682603,3.3,2704.1,2703.3,0.05234667]
[1643829682804,2.46445659,2704.0,2703.3,0.05234667]
[1643829683004,0.01,2703.9,2703.3,0.05234667]
[1643829683405,0.01,2703.9,2702.9,0.536]
[1643829683611,0.95765332,2703.9,2702.8,0.0038839]
[1643829683806,0.94765332,2703.6,2702.8,0.0038839]
[1643829684015,0.68451585,2702.9,2702.8,0.0038839]
[1643829685943,2.91429209,2702.9,2702.8,0.0038839]
[1643829686145,0.68451585,2702.9,2702.8,0.0038839]
[1643829686744,2.9,2702.8,2702.2,0.01140578]
[1643829687046,2.10991656,2702.7,2701.9,0.01140578]
[1643829687244,0.01,2702.6,2701.9,0.01140578]
[1643829687444,2.13526227,2702.7,2702.5,0.01140578]
[1643829687644,2.12526227,2702.7,2702.5,0.01140578]
[1643829687846,2.13526227,2702.7,2702.5,0.01140578]
[1643829688047,2.10764309,2702.8,2702.0,0.15035976]
[1643829688246,2.15401019,2702.7,2701.8,0.721]
[1643829688445,0.00437271,2702.9,2702.6,0.01140578]
[1643829688648,0.00437271,2702.9,2702.8,4.31140578]
[1643829688947,0.00437271,2702.9,2702.8,0.55240578]
[1643829689202,0.00437271,2702.9,2702.8,0.54740578]
[1643829689399,0.00437271,2702.9,2702.8,0.69624498]
[1643829689599,0.00437271,2702.9,2702.8,0.54740578]
[1643829689801,0.00437271,2702.9,2702.8,2.736]
[1643829690001,0.00437271,2702.9,2702.8,0.005]
[1643829690201,0.00437271,2702.9,2702.8,0.536]
[1643829690604,0.00437271,2702.9,2702.8,0.486]
[1643829690801,0.00437271,2702.9,2702.6,0.00500636]
[1643829691000,0.00437271,2702.9,2702.6,0.18990636]
[1643829691401,0.00437271,2702.9,2702.6,0.19491272]
[1643829691707,0.00437271,2702.9,2702.6,0.00500636]
[1643829692701,0.00437271,2702.9,2702.6,0.00976606]
[1643829692951,0.15663632,2702.7,2702.6,0.0047597]
[1643829693151,0.00437271,2702.9,2702.6,0.0047597]
[1643829693753,0.03031789,2702.8,2702.6,0.01616548]
[1643829694264,0.17788237,2702.7,2702.6,0.0047597]
[1643829694854,0.17788237,2702.7,2702.6,0.01616548]
[1643829695058,0.17788237,2702.7,2702.6,0.01140578]
[1643829695256,0.17788237,2702.7,2702.5,0.00475971]
[1643829695655,0.17788237,2702.7,2701.9,0.01140578]
[1643829695855,0.17788237,2702.7,2701.8,0.185]
[1643829695856,0.17788237,2702.7,2702.0,0.185]
[1643829696056,0.17788237,2702.7,2701.8,0.20140578]
[1643829696255,0.005,2703.0,2702.0,2.55]
[1643829696256,0.1699485,2702.1,2702.0,2.55]
[1643829696456,0.1699485,2702.1,2702.0,0.01140578]
[1643829696457,1.02335709,2702.1,2702.0,0.01140578]
[1643829697118,1.1517,2702.9,2702.0,0.01140578]
[1643829698018,1.1517,2702.9,2702.4,0.01140578]
[1643829698218,1.1517,2702.9,2702.1,0.01140578]
[1643829698620,1.1517,2702.9,2701.8,0.185]
[1643829698820,1.1517,2702.9,2702.1,0.01140578]
[1643829699223,1.1517,2702.9,2702.0,0.15958717]
[1643829699224,0.77144133,2702.4,2702.0,0.15958717]
[1643829699424,0.77144133,2702.4,2702.3,0.01140578]
[1643829699821,1.1517,2702.9,2702.0,0.15958717]
[1643829700020,1.15721359,2702.9,2702.4,0.00551465]
[1643829700221,1.15721359,2702.9,2702.6,0.01140578]
[1643829700651,1.56911008,2702.8,2702.6,0.01140578]
[1643829700848,1.15721359,2702.9,2702.6,0.01140578]
[1643829701049,1.04264616,2702.8,2702.6,0.01140578]
[1643829701251,1.04264616,2702.8,2702.4,0.0055149]
[1643829701955,1.04264616,2702.8,2702.5,0.01140578]
[1643829702950,1.04264616,2702.8,2702.4,0.00551475]
[1643829703352,1.56907464,2702.7,2702.4,0.00551475]
[1643829703553,1.56907464,2702.7,2702.4,0.0055148]
[1643829704604,1.56907464,2702.7,2702.4,0.01049781]
[1643829704799,1.56907464,2702.7,2702.4,0.00498301]
[1643829705800,1.56907464,2702.7,2702.4,0.01638879]
[1643829705999,1.56907464,2702.7,2702.4,0.00498301]
[1643829707401,1.56907464,2702.7,2702.5,0.01140578]
[1643829707702,1.56907464,2702.7,2702.4,0.00498301]
[1643829707951,1.04264616,2702.8,2702.2,0.01140578]
[1643829708150,1.04264616,2702.8,2701.9,2.11]
[1643829708350,1.04264616,2702.8,2702.4,0.00464278]
[1643829708750,1.04264616,2702.8,2702.7,0.01140578]
[1643829709151,1.04264616,2702.8,2702.4,0.00464278]
[1643829709557,1.04264616,2702.8,2702.4,0.00464291]
[1643829709955,0.85751797,2702.2,2701.1,5.13843]
[1643829710156,0.00464201,2702.9,2701.9,0.16062341]
[1643829710556,0.00464201,2702.9,2701.9,0.46062341]
[1643829710756,8.72897979,2703.1,2701.9,0.16062341]
[1643829710956,0.1849,2703.0,2701.9,0.16062341]
[1643829711358,0.14223182,2702.3,2701.9,0.16062341]
[1643829711596,0.14223182,2702.3,2702.0,0.185]
[1643829711799,0.1849,2703.0,2701.9,0.185]
[1643829711999,0.0048016,2702.6,2702.3,0.00480223]
[1643829712900,0.85526539,2702.5,2702.3,0.00480223]
[1643829713200,0.18555819,2702.5,2702.3,0.00480223]
[1643829714399,0.77301416,2702.4,2702.3,0.00480219]
[1643829714800,0.18555819,2702.5,2702.3,0.00480219]
[1643829715566,0.18555819,2702.5,2702.3,0.00493298]
[1643829717067,0.00493233,2702.6,2702.3,0.00493298]
[1643829717868,0.0098647,2702.6,2702.3,0.00986601]
[1643829718068,0.00493237,2702.6,2702.3,0.00493303]
[1643829719101,0.16679061,2702.4,2702.3,0.00493303]
[1643829719302,0.16679061,2702.4,2702.3,0.00466095]
[1643829719502,0.16679061,2702.4,2702.3,2.45466095]
[1643829719703,0.00466034,2702.6,2702.3,2.45466095]
[1643829719904,0.00466034,2702.6,2702.3,3.45466095]
[1643829720104,0.00466034,2702.6,2702.3,2.45466095]
[1643829720309,0.00466025,2702.6,2702.3,3.45]
[1643829720504,0.00466025,2702.6,2702.4,1.0]
[1643829720909,0.17335132,2702.5,2702.3,3.45]
[1643829721104,0.17335132,2702.5,2702.3,2.45]
[1643829721306,0.00466025,2702.6,2702.4,3.7]
[1643829721511,0.00932061,2702.6,2702.4,2.7]
[1643829721705,0.00466036,2702.6,2702.5,1.0]
[1643829722106,0.69244015,2702.6,2702.4,0.3]
[1643829722306,0.70187569,2702.5,2702.3,0.004661]
[1643829722958,0.15411597,2702.6,2702.3,0.00494394]
[1643829723950,0.15905917,2702.6,2702.3,0.00494386]
[1643829726452,0.15877632,2702.6,2702.3,0.00466096]
[1643829727810,1.56879307,2702.5,2702.3,0.00466096]
[1643829728808,1.56879307,2702.5,2702.3,0.00466092]
[1643829729210,0.70187569,2702.5,2702.3,0.00466092]
[1643829729409,0.70187569,2702.4,2702.3,0.00466092]
[1643829729608,2.27066876,2702.5,2702.3,0.00466092]
[1643829730009,0.16187804,2702.0,2701.6,0.37074454]
[1643829730212,1.56879307,2701.9,2701.6,0.185]
[1643829730466,0.67798142,2702.3,2701.6,0.185]
[1643829730467,1.56879307,2701.8,2701.6,0.185]
[1643829730678,1.56879307,2701.7,2701.2,0.185]
[1643829730869,1.56879307,2701.6,2701.0,5.685]
[1643829731067,1.56879307,2701.5,2701.0,2.185]
[1643829731262,1.56879307,2701.4,2701.3,3.40202737]
[1643829731468,1.56879307,2701.6,2701.3,3.40202737]
[1643829731661,1.56911473,2701.5,2701.3,3.40202737]
[1643829731863,0.88687569,2702.1,2701.3,3.40202737]
[1643829732064,1.56910028,2702.0,2701.3,3.40202737]
[1643829732463,1.56910028,2702.0,2701.3,3.2]
[1643829733064,1.56910028,2701.9,2701.3,3.2]
[1643829733267,1.56910028,2701.8,2701.3,3.2]
[1643829733569,1.56910028,2701.7,2701.5,0.00551553]
[1643829733764,3.7187,2702.2,2701.5,0.00551553]
[1643829733964,0.84303441,2701.8,2701.5,0.00551553]
[1643829734200,1.56895643,2701.7,2701.5,0.00551553]
[1643829734406,3.7187,2702.2,2701.5,0.00551553]
[1643829734604,1.56899328,2702.1,2701.5,0.00551553]
[1643829734803,1.56899328,2702.3,2701.5,0.00551553]
[1643829735006,1.56899328,2702.2,2701.5,0.00551553]
[1643829735206,0.18100273,2701.9,2701.5,0.1832069]
[1643829735404,0.185,2702.4,2701.5,0.1832069]
[1643829735705,1.56892463,2702.3,2701.5,0.1832069]
[1643829735904,1.56892463,2702.3,2701.6,0.00551548]
[1643829736306,1.56892463,2702.3,2702.0,0.15489261]
[1643829736705,0.00551356,2702.5,2702.1,0.6491944]
[1643829736706,1.56892463,2702.2,2702.1,0.6491944]
[1643829737104,1.56892463,2702.4,2702.1,0.6491944]
[1643829737404,1.72612493,2702.4,2702.1,0.6491944]
[1643829737605,1.56892463,2702.3,2702.1,0.6491944]
[1643829738563,1.56892463,2702.3,2702.1,0.54114362]
[1643829739162,1.56892463,2702.3,2702.1,0.84114362]
[1643829740162,0.1572003,2702.4,2702.1,0.84114362]
[1643829740562,0.0072003,2702.4,2702.1,0.84114362]
[1643829740962,0.0072003,2702.4,2702.1,1.76606357]
[1643829741604,0.81404005,2702.4,2702.1,0.54114357]
[1643829742004,0.81404005,2702.4,2702.1,0.00514357]
[1643829742204,0.81404005,2702.4,2702.1,0.0048791]
[1643829743003,0.0072003,2702.4,2702.1,0.0048791]
[1643829744009,0.70187569,2702.3,2702.1,0.0048791]
[1643829744206,0.185,2702.2,2702.1,0.0048791]
[1643829744808,0.75719655,2702.2,2702.1,0.0048791]
[1643829745855,0.75719655,2702.2,2702.0,0.00493208]
[1643829747057,0.75719655,2702.2,2702.0,0.00493213]
[1643829749409,0.75719655,2702.2,2702.0,0.00464594]
[1643829749611,0.1849,2702.3,2702.0,0.00464594]
[1643829749807,0.1849,2702.3,2702.0,0.54064594]
[1643829750008,0.00464501,2702.5,2702.0,0.54064594]
[1643829750606,0.00929006,2702.5,2702.0,0.54529183]
[1643829750806,0.19177537,2702.2,2702.0,0.54064589]
[1643829751715,0.00464505,2702.5,2702.0,0.54529183]
[1643829751716,0.00929006,2702.5,2702.0,0.54529183]
[1643829751908,0.00464501,2702.5,2702.1,0.185]
[1643829752110,0.00464501,2702.5,2702.0,0.18964594]
[1643829752511,0.7065207,2702.5,2702.0,0.18964594]
[1643829752959,0.13500559,2702.4,2702.1,0.00480082]
[1643829753160,0.13500559,2702.4,2701.9,0.836]
[1643829754565,0.83688128,2702.4,2701.5,0.185]
[1643829754767,0.70187569,2702.0,2701.1,1.11035]
[1643829754963,0.88687569,2701.9,2701.1,1.11035]
[1643829755165,0.70187569,2701.9,2701.1,1.11035]
[1643829755365,3.0851119,2701.8,2701.1,1.11035]
[1643829755569,0.70187569,2701.5,2701.1,0.185]
[1643829755776,0.70187569,2701.3,2701.1,0.185]
[1643829755965,0.70187569,2701.3,2699.9,3.6659]
[1643829756165,0.185,2701.2,2699.9,3.6659]
[1643829756366,0.185,2701.3,2699.9,3.6659]
[1643829756628,0.185,2701.3,2701.1,0.005516]
[1643829756827,0.1924863,2701.2,2701.1,0.005516]
[1643829757033,0.3774863,2701.2,2701.1,0.005516]
[1643829757428,1.06411668,2701.2,2701.1,0.005516]
[1643829757928,1.06411668,2701.2,2701.0,0.00551605]
[1643829758127,0.185,2701.1,2701.0,0.00551605]
[1643829759040,0.185,2701.1,2701.0,3.55]
[1643829759230,0.185,2701.6,2701.0,4.85]
[1643829759635,0.185,2701.8,2700.9,0.00551615]
[1643829759832,0.82226066,2701.1,2700.9,0.00551615]
[1643829760031,0.185,2701.8,2701.0,0.92549]
[1643829760231,1.56936126,2701.7,2701.2,0.00551589]
[1643829760460,0.185,2701.6,2701.2,0.00551589]
[1643829760655,0.17302965,2701.5,2701.2,0.00551589]
[1643829761559,0.17302965,2701.5,2701.2,0.00488953]
[1643829761560,0.6813592,2701.4,2701.2,0.00488953]
[1643829762459,3.11173982,2701.9,2701.8,23.96061115]
[1643829762659,1.05197066,2701.9,2701.8,23.96061115]
[1643829762858,3.08411784,2701.9,2701.8,23.96061115]
[1643829763062,1.05197066,2701.9,2701.8,23.96061115]
[1643829764410,3.06630124,2701.9,2701.8,23.96061115]
[1643829764613,9.35195124,2701.9,2701.8,5.13177295]
[1643829765113,9.53675124,2701.9,2701.8,0.04005993]
[1643829765713,8.53675124,2701.9,2701.8,0.04005993]
[1643829766113,1.93801496,2701.9,2701.8,0.04005993]
[1643829766314,0.36634053,2701.9,2701.8,0.04005993]
[1643829766714,0.18154053,2701.9,2701.8,0.04005993]
[1643829766915,2.53154053,2701.9,2701.8,0.04005993]
[1643829767322,5.4,2701.7,2700.7,1.85125]
[1643829767517,3.71757655,2701.6,2700.4,0.185]
[1643829768163,0.75775016,2701.4,2700.4,0.185]
[1643829768363,0.75775016,2701.4,2700.4,2.03643]
[1643829768364,0.19976173,2700.5,2700.4,2.03643]
[1643829768764,2.03344208,2701.3,2700.4,3.33643]
[1643829768961,0.75775016,2701.4,2700.4,3.33643]
[1643829769162,0.75775016,2701.4,2700.5,0.3]
[1643829769362,0.75775016,2701.4,2700.6,0.185]
[1643829769972,0.75775016,2701.4,2700.8,0.92566]
[1643829770167,0.1847,2701.6,2700.8,0.92566]
[1643829770168,0.1660397,2701.3,2700.8,0.92566]
[1643829772108,0.1660397,2701.3,2700.9,0.00551615]
[1643829772616,0.1849,2701.7,2701.1,0.92553]
[1643829772814,0.1849,2701.7,2701.2,2.30196078]
[1643829773109,0.185,2702.0,2701.2,0.3]
[1643829773307,0.00551377,2702.1,2701.3,0.185]
[1643829773508,0.19165015,2702.0,2701.3,0.19003709]
[1643829774007,0.19165015,2702.0,2701.5,1.85062]
[1643829774208,0.19165015,2702.0,2701.5,0.17666527]
[1643829774606,0.19165015,2702.0,2701.5,0.18170215]
[1643829774806,0.19165015,2702.0,2701.5,0.00503688]
[1643829775211,0.19165015,2702.0,2701.7,0.9254]
[1643829776264,0.19165015,2702.0,2701.6,0.00503689]
[1643829776463,1.13185433,2702.0,2701.6,0.00503689]
[1643829777065,1.13185433,2702.0,2701.6,0.00462778]
[1643829777263,0.19165015,2702.0,2701.6,0.00462778]
[1643829778169,0.70130596,2701.9,2701.6,0.00467959]
[1643829778365,0.88620596,2701.9,2701.6,0.00467959]
[1643829778766,0.70130596,2701.8,2701.6,0.00467959]
[1643829778967,0.19165015,2702.0,2701.6,0.00467959]
[1643829778968,7.02028762,2701.7,2701.6,0.00467959]
[1643829779224,6.83558762,2701.7,2700.8,1.85112]
[1643829779516,0.1844,2701.6,2700.8,1.85112]
[1643829779913,0.19444125,2701.0,2700.9,0.3]
[1643829780119,0.2070209,2701.0,2700.6,0.185]
[1643829780317,1.56987898,2700.9,2700.6,0.185]
[1643829780715,1.75427898,2700.9,2700.6,0.185]
[1643829780915,1.56987898,2700.8,2700.6,0.185]
[1643829781217,0.1842,2701.3,2700.6,0.185]
[1643829781413,1.5695838,2701.2,2700.6,0.185]
[1643829781615,1.5695838,2701.1,2700.7,1.85123]
[1643829781815,3.7217,2701.4,2700.7,2.15123]
[1643829782015,0.14842627,2701.2,2701.0,0.92562]
[1643829782216,0.14842627,2701.2,2701.0,1.22562]
[1643829782614,1.1589,2701.7,2701.0,1.22562]
[1643829782865,1.56946654,2701.6,2701.0,1.22562]
[1643829783172,0.99999999,2701.3,2700.3,1.0]
[1643829783373,0.99999999,2701.3,2699.6,5.37799951]
[1643829783374,0.01271878,2700.4,2699.6,3.99764]
[1643829783567,0.01271878,2700.4,2699.6,0.2952]
[1643829783767,3.24690178,2701.0,2700.1,0.185]
[1643829783966,1.57000588,2700.3,2700.1,0.185]
[1643829784166,0.15976285,2700.2,2699.9,1.11603267]
[1643829784365,0.15976285,2700.2,2699.9,0.185]
[1643829784564,0.15976285,2700.2,2699.7,0.185]
[1643829784965,0.15976285,2700.2,2699.8,0.92594]
[1643829785166,0.15976285,2700.2,2699.7,0.185]
[1643829785366,0.15976285,2700.2,2699.9,0.185]
[1643829785670,0.15976285,2700.2,2699.8,0.00236759]
[1643829785865,0.185,2700.8,2700.0,0.80805305]
[1643829786067,4.62099516,2701.1,2700.0,0.80805305]
[1643829786068,1.56996026,2700.7,2700.0,0.80805305]
[1643829786267,1.56996026,2700.6,2700.0,1.10805305]
[1643829786467,0.185,2701.0,2700.0,1.10805305]
[1643829786710,1.56991816,2700.9,2700.3,0.00236719]
[1643829786908,2.43068866,2700.9,2700.3,0.00236719]
[1643829787117,5.4,2700.3,2699.3,0.11774941]
[1643829787316,0.01253552,2699.6,2699.5,0.1851]
[1643829787511,5.94853552,2699.6,2698.6,0.1852]
[1643829787711,1.75511816,2699.5,2698.6,0.1852]
[1643829787912,5.94853552,2699.6,2698.6,0.1852]
[1643829788323,0.17217723,2698.7,2698.6,0.1852]
[1643829788513,0.54853552,2699.6,2698.6,0.1852]
[1643829788716,0.1852,2699.7,2698.6,2.1852]
[1643829788914,0.1852,2700.0,2698.7,2.38835]
[1643829789115,0.1852,2700.2,2698.8,5.3979]
[1643829789315,1.57021672,2700.1,2698.9,3.6841]
[1643829789614,0.2567,2700.5,2699.2,0.84356902]
[1643829789615,0.14769644,2699.5,2699.2,0.84356902]
[1643829789812,0.14769644,2699.5,2699.3,0.1852]
[1643829790014,0.14769644,2699.5,2699.2,0.1852]
[1643829790212,0.14769644,2699.5,2699.2,0.4852]
[1643829790468,0.14769644,2699.5,2699.4,0.00245586]
[1643829791066,0.86755447,2700.3,2699.4,0.00245586]
[1643829791067,0.1852,2700.3,2699.4,0.00245586]
[1643829791268,1.5701641,2700.2,2699.4,0.00245586]
[1643829791467,0.00519626,2699.9,2699.4,0.18745586]
[1643829791665,0.00519626,2699.9,2699.4,0.185]
[1643829792270,0.00519626,2699.9,2699.4,2.17008634]
[1643829792468,0.20028717,2699.6,2699.4,0.185]
[1643829792666,0.20028717,2699.6,2699.5,3.70516947]
[1643829792868,0.20028717,2699.6,2699.5,4.70516947]
[1643829793068,0.20028717,2699.6,2699.5,3.70516947]
[1643829793268,0.20028717,2699.6,2699.5,0.00516947]
[1643829793968,0.20028717,2699.6,2699.4,0.00516956]
[1643829795122,0.20028717,2699.6,2699.4,0.00516961]
[1643829795925,0.00516854,2699.9,2699.4,0.00516961]
[1643829796325,0.00465797,2699.9,2699.4,0.00465893]
[1643829796525,0.1848,2700.4,2699.5,5.585]
[1643829796726,0.1848,2700.4,2699.6,1.0]
[1643829796926,0.81319463,2700.5,2699.8,0.92583]
[1643829797124,0.81319463,2700.5,2699.8,1.22583]
[1643829797528,0.81313666,2700.5,2699.8,1.22583]
[1643829797726,0.81313666,2700.5,2699.7,0.1849]
[1643829797962,1.76301286,2700.4,2699.7,0.1849]
[1643829798166,0.185,2701.0,2699.7,0.1849]
[1643829798364,0.185,2701.0,2699.8,0.93880383]
[1643829798566,1.56997837,2700.9,2699.9,0.721]
[1643829798770,1.56997837,2700.8,2700.3,0.92563]
[1643829798964,0.185,2701.3,2700.3,0.92563]
[1643829799165,0.85257824,2701.1,2700.3,0.92563]
[1643829799364,0.15079106,2701.0,2700.4,0.185]
[1643829799664,1.56976156,2700.9,2700.3,1.22563]
[1643829799865,1.56976156,2700.9,2700.3,3.07688]
[1643829800064,1.56976156,2700.9,2700.3,2.15125]
[1643829800065,0.00552619,2700.8,2700.3,2.15125]
[1643829800264,1.56976156,2700.7,2700.3,2.15125]
[1643829801165,1.56976156,2700.7,2700.1,0.185]
[1643829801166,0.00552639,2700.6,2700.1,0.185]
[1643829801373,0.00552639,2700.6,2699.8,3.30661814]
[1643829801374,1.75917738,2700.5,2699.9,0.185]
[1643829801632,0.00552639,2700.6,2699.9,0.185]
[1643829801633,0.15204478,2700.0,2699.9,0.185]
[1643829801820,0.15204478,2700.0,2699.6,0.00552841]
[1643829802417,0.15204478,2700.0,2699.6,0.00552785]
[1643829803616,0.15757169,2700.0,2699.6,0.0055277]
[1643829804023,0.15757169,2700.0,2699.1,0.80359657]
[1643829804216,0.15757169,2700.0,2699.2,0.92607]
[1643829804417,0.15757169,2700.0,2699.3,1.8519]
[1643829804418,0.00552691,2700.0,2699.3,1.8519]
[1643829804620,0.00552691,2700.0,2699.4,1.85182]
[1643829804819,0.1852,2700.6,2699.4,2.15182]
[1643829805019,0.1852,2700.6,2699.5,7.4]
[1643829805218,0.1852,2700.6,2699.6,0.7344309]
[1643829805461,0.1852,2700.6,2699.6,2.9602809]
[1643829805462,1.56997056,2700.5,2699.6,2.9602809]
[1643829805664,1.56997056,2700.5,2699.8,0.18202601]
[1643829805665,0.15729147,2700.1,2699.8,0.18202601]
[1643829806773,0.15729147,2700.1,2699.6,2.0344309]
[1643829808167,0.15729147,2700.1,2699.6,1.3]
[1643829808365,0.00552706,2700.0,2699.6,0.3]
[1643829808568,0.00552706,2700.0,2699.5,7.4]
[1643829808766,0.00552706,2700.0,2699.5,7.7]
[1643829809416,0.00552706,2700.0,2699.6,1.0630394]
[1643829809614,0.00552717,2699.9,2699.6,2.0630394]
[1643829809811,0.00552717,2699.9,2699.6,2.2482394]
[1643829812020,0.00505123,2699.9,2699.6,2.2482394]
[1643829812219,0.00505123,2699.9,2699.6,2.7842394]
[1643829812418,0.00505123,2699.9,2699.7,3.13269548]
[1643829812616,0.00505123,2699.9,2699.8,5.936]
[1643829812875,0.00505123,2699.9,2699.8,12.64522824]
[1643829813167,0.00505123,2699.9,2699.8,13.64522824]
[1643829813366,0.0045797,2699.9,2699.8,13.64522824]
[1643829813563,0.0045797,2699.9,2699.8,15.49658824]
[1643829813964,0.0045797,2699.9,2699.8,8.78736]
[1643829814365,0.00457966,2700.0,2699.8,8.78736]
[1643829814574,0.185,2701.4,2700.0,7.39542034]
[1643829814766,1.5696664,2701.3,2700.3,0.92558]
[1643829815067,0.185,2701.2,2700.4,0.3]
[1643829815265,1.5696664,2701.1,2700.4,0.3]
[1643829815465,0.14600322,2700.5,2700.4,0.3]
[1643829815865,0.14600322,2700.5,2700.2,0.536]
[1643829815866,0.185,2701.0,2700.3,0.3]
[1643829816065,0.185,2701.4,2700.3,1.8513526]
[1643829816268,1.56963949,2701.3,2700.4,0.3]
[1643829816477,0.185,2701.2,2700.4,0.3]
[1643829816728,1.56963949,2701.1,2700.4,0.3]
[1643829816926,1.56963949,2701.1,2700.3,1.3]
[1643829817133,0.18404814,2700.4,2700.1,3.4499]
[1643829818330,0.18404814,2700.4,2700.1,3.7499]
[1643829818731,0.18404814,2700.4,2700.1,0.485]
[1643829819332,0.18942025,2700.4,2700.1,0.485]
[1643829819534,0.185,2700.3,2700.1,0.185]
[1643829819932,0.18942025,2700.4,2699.7,1.2018]
[1643829820132,1.56995775,2700.3,2699.7,1.2018]
[1643829820367,0.37442025,2700.4,2699.6,4.96359562]
[1643829820664,0.14567197,2699.9,2699.6,3.2926]
[1643829820869,0.14567197,2699.9,2699.6,0.3]
[1643829821065,0.14567197,2699.9,2699.5,7.40204348]
[1643829821268,0.14567197,2699.9,2699.5,0.00204348]
[1643829821464,0.14567197,2699.9,2699.3,0.00545042]
[1643829821665,0.1852,2699.8,2699.3,0.00544996]
[1643829821865,0.1852,2699.8,2699.3,0.18800306]
[1643829822065,0.1852,2699.8,2699.4,0.00204348]
[1643829822270,0.33087197,2699.9,2699.4,0.00204348]
[1643829822467,0.14567197,2699.9,2699.4,0.00204348]
[1643829823070,0.5852,2700.0,2699.4,0.92809348]
[1643829823267,0.4,2700.0,2699.6,0.88113997]
[1643829823469,0.4,2700.0,2699.4,1.22809348]
[1643829823470,1.57006746,2699.9,2699.4,1.22809348]
[1643829824417,1.7574244,2699.9,2699.4,1.22809348]
[1643829824615,1.57006746,2699.8,2699.4,2.04898874]
[1643829824824,0.4,2700.0,2699.4,2.04898874]
[1643829825017,1.57005601,2699.9,2699.4,2.97496284]
[1643829825416,1.57005601,2699.9,2699.4,2.04898874]
[1643829825616,1.57005601,2699.9,2699.4,1.12293874]
[1643829825817,1.57005601,2699.9,2699.4,0.30204348]
[1643829826219,1.57005601,2699.9,2699.4,0.00204348]
[1643829826415,0.4,2700.0,2699.4,0.00204348]
[1643829826616,1.57007524,2699.9,2699.4,0.00204348]
[1643829827017,1.57007524,2699.9,2699.4,0.92809348]
[1643829828665,0.4,2700.0,2699.4,2.78003848]
[1643829828869,0.4,2700.0,2699.9,0.14643094]
[1643829829168,0.4,2700.0,2699.6,0.92798348]
[1643829829169,1.9700092,2700.0,2699.6,0.92798348]
[1643829829365,1.5700092,2699.9,2699.6,0.00204348]
[1643829829565,0.4,2700.0,2699.7,0.3]
[1643829829766,1.57002367,2699.9,2699.6,0.30204348]
[1643829829971,1.57002367,2699.9,2699.4,0.00204348]
[1643829830166,1.57002367,2699.9,2699.7,0.15675422]
[1643829830570,0.4,2700.0,2699.7,0.15675422]
[1643829830767,0.4,2700.0,2699.7,1.08257142]
[1643829831368,0.4,2700.0,2699.8,0.94414421]
[1643829834124,0.4,2700.0,2699.7,0.1587977]
[1643829834326,1.56999727,2699.9,2699.7,0.00204348]
[1643829834525,1.56999727,2699.9,2699.5,0.00204348]
[1643829835379,1.74286416,2699.9,2699.6,0.19771052]
[1643829835569,1.74286416,2699.9,2699.5,0.00204348]
[1643829835570,1.56999727,2699.8,2699.5,0.00204348]
[1643829835769,1.56999727,2699.8,2699.3,0.00672835]
[1643829836170,1.56999727,2699.8,2699.3,0.00672989]
[1643829836874,0.1852,2699.7,2699.3,0.00672989]
[1643829837070,1.56999727,2699.6,2699.3,0.00672989]
[1643829837269,0.15050199,2699.4,2699.3,0.00672972]
[1643829838071,0.1852,2699.7,2699.3,0.00672972]
[1643829838272,1.57022927,2699.6,2699.3,0.00672972]
[1643829838474,0.1852,2699.9,2699.3,0.00672972]
[1643829838475,0.1852,2699.9,2699.3,0.00204348]
[1643829838672,1.57020435,2699.8,2699.3,0.00204348]
[1643829839116,0.16037819,2699.6,2699.3,0.00204348]
[1643829839319,1.57024325,2699.5,2699.3,0.00204348]
[1643829839517,0.1852,2699.9,2699.2,0.00469245]
[1643829839718,0.4,2700.0,2699.1,0.16272942]
[1643829839719,1.57011011,2699.8,2699.3,0.00469227]
[1643829839919,0.5852,2700.0,2699.3,0.00469227]
[1643829840118,1.57007705,2699.9,2699.3,0.93069227]
[1643829840517,1.76579428,2699.9,2699.4,0.8448448]
[1643829840720,1.57007705,2699.8,2699.6,0.16508982]
[1643829840920,0.5852,2700.0,2699.6,0.16508982]
[1643829841219,1.57006014,2699.9,2699.6,0.16508982]
[1643829841819,1.75502915,2699.9,2699.6,0.16508982]
[1643829842019,1.57006014,2699.8,2699.6,0.16508982]
[1643829842224,1.57006014,2699.8,2699.6,0.1671333]
[1643829843067,1.57006014,2699.7,2699.6,0.1671333]
[1643829843365,1.57006014,2699.7,2699.6,0.16508982]
[1643829843665,1.57006014,2699.7,2699.4,0.00204348]
[1643829843971,0.70003742,2700.1,2699.6,3.5]
[1643829844170,4.7829,2700.7,2699.7,2.0]
[1643829844366,1.10447301,2700.9,2699.8,2.0]
[1643829844567,4.14267074,2701.4,2699.9,0.536]
[1643829844568,0.91882301,2701.2,2699.9,0.536]
[1643829844767,0.91882301,2701.3,2700.4,0.90953799]
[1643829844964,1.57719116,2701.5,2700.4,0.90953799]
[1643829844965,0.91882301,2701.2,2700.4,0.90953799]
[1643829845165,0.91882301,2701.3,2700.6,0.92567]
[1643829845373,0.91882301,2701.3,2700.4,1.39453799]
[1643829845564,0.91882301,2701.4,2700.4,2.39453799]
[1643829845764,0.2003818,2701.5,2700.4,2.39453799]
[1643829845765,0.00234515,2700.9,2700.6,1.8511]
[1643829845966,0.00234515,2700.9,2700.7,0.14875644]
[1643829846638,0.00234515,2700.9,2700.7,3.32525304]
[1643829846825,0.00234515,2700.9,2700.8,5.37413087]
[1643829847024,0.00234515,2700.9,2700.8,5.55913087]
[1643829847025,0.00469068,2700.9,2700.8,5.55913087]
[1643829848130,0.00469068,2700.9,2700.8,6.48457087]
[1643829848324,0.00469064,2701.0,2700.9,3.5231917]
[1643829848724,0.00469064,2701.0,2700.9,5.0591917]
[1643829849124,0.00469064,2701.0,2700.9,7.10582068]
[1643829849324,1.1199907,2701.8,2700.9,7.10582068]